fUST/lending_fUST_20240127
["ID","MTS","AMOUNT","RATE_DAILY","PERIOD"]
[312837824,1706322640333,-478.027102,0.0003098,2]
[312837825,1706322640342,-478.027102,0.0003098,2]
[312837826,1706322640351,-478.027102,0.0003098,2]
[312837827,1706322640361,-478.027102,0.0003098,2]
[312837828,1706322640370,-151.0,0.0003098,2]
[312837829,1706322640379,-208.97833,0.0003098,2]
[312837830,1706322640388,-666.206963,0.0003098,2]
[312837831,1706322640397,-666.206963,0.0003098,2]
[312837832,1706322640406,-666.206963,0.0003098,2]
[312837833,1706322640415,-666.206963,0.0003098,2]
[312837834,1706322640424,-666.206963,0.0003098,2]
[312837835,1706322640433,-666.206963,0.0003098,2]
[312837836,1706322640442,-666.206963,0.0003098,2]
[312837837,1706322640451,-666.206963,0.0003098,2]
[312837838,1706322640460,-151.743959,0.0003098,2]
[312837839,1706322640470,-5000.0,0.0003098,7]
[312837840,1706322640479,-6534.919135,0.0003098,2]
[312837841,1706322640488,-6534.919135,0.0003098,2]
[312837842,1706322640498,-6534.919135,0.0003098,2]
[312837843,1706322640507,-6534.919135,0.0003098,2]
[312837844,1706322640517,-6534.919135,0.0003098,2]
[312837845,1706322640527,-6534.919135,0.0003098,2]
[312837846,1706322640536,-6534.919135,0.0003098,2]
[312837847,1706322640546,-6534.919135,0.0003098,2]
[312837848,1706322640555,-6534.919135,0.0003098,2]
[312837849,1706322640566,-6534.919135,0.0003098,2]
[312837850,1706322640574,-151.0,0.0003098,2]
[312837851,1706322640584,-151.0,0.0003098,2]
[312837852,1706322640594,-155.258726,0.0003098,2]
[312837853,1706322640604,-1379.83917106,0.0003098,2]
[312837854,1706322640613,-529.28526222,0.00031,4]
[312837855,1706322640623,-167.874376,0.00031115,2]
[312837856,1706322640632,-556.2457431,0.00031143,4]
[312837857,1706322640641,-273.75067298,0.00031145,4]
[312837858,1706322640650,-162.2234434,0.00031145,4]
[312837859,1706322640659,-155.46554963,0.00031145,4]
[312837860,1706322640667,-171.49500219,0.00031145,4]
[312837861,1706322640676,-1296.98004999,0.00031146,4]
[312837862,1706322640686,-387.16006083,0.00031146,4]
[312837863,1706322640694,-150.96980604,0.00031345,2]
[312837864,1706322640703,-151.0,0.00031793,2]
[312837865,1706322640712,-298.82909392,0.00032,4]
[312837866,1706322640721,-200.0,0.00032048,15]
[312837867,1706322640730,-200.0,0.00032048,15]
[312837868,1706322640739,-298.0,0.00032048,15]
[312837870,1706322640749,-620.00007938,0.00032089,2]
[312837872,1706322640758,-167.874376,0.00032094,2]
[312837874,1706322640767,-184.5123035,0.00032458,2]
[312837876,1706322640776,-158.666541,0.00032877,2]
[312837878,1706322640785,-277.23333009,0.00033,2]
[312837880,1706322640794,-1009.0,0.00033,2]
[312837882,1706322640803,-151.0,0.00033,2]
[312837884,1706322640812,-167.874376,0.00033072,2]
[312837886,1706322640821,-200.0,0.000331,4]
[312837888,1706322640830,-233.496814,0.000334,6]
[312837890,1706322640839,-245.548314,0.000334,6]
[312837892,1706322640848,-151.0,0.00033588,2]
[312837894,1706322640858,-620.00000397,0.00033694,2]
[312837896,1706322640933,-167.874376,0.00034051,2]
[312837897,1706322640943,-151.0,0.00034521,2]
[312837898,1706322640951,-156.41873165,0.000346,2]
[312837899,1706322640960,-150.96980604,0.00034827,2]
[312837900,1706322640970,-250.44079184,0.00034827,2]
[312837901,1706322640978,-50000.0,0.00034831,7]
[312837902,1706322640988,-211.800487,0.00034831,2]
[312837903,1706322640997,-211.800487,0.00034831,2]
[312837904,1706322641006,-162.672492,0.00034831,2]
[312837905,1706322641015,-162.672492,0.00034831,2]
[312837906,1706322641024,-151.0,0.00034831,2]
[312837907,1706322641032,-151.0,0.00034831,2]
[312837908,1706322641041,-151.0,0.00034831,2]
[312837909,1706322641050,-151.0,0.00034831,2]
[312837910,1706322641059,-151.0,0.00034831,2]
[312837911,1706322641068,-478.027102,0.00034831,2]
[312837912,1706322641081,-478.027102,0.00034831,2]
[312837913,1706322641090,-666.206963,0.00034831,2]
[312837914,1706322641098,-666.206963,0.00034831,2]
[312837915,1706322641107,-6534.919135,0.00034831,2]
[312837916,1706322641116,-6534.919135,0.00034831,2]
[312837917,1706322641125,-6952.25,0.00034884,2]
[312837918,1706322641134,-6952.25,0.00034884,2]
[312837919,1706322641143,-6952.25,0.00034884,2]
[312837920,1706322641153,-6952.25,0.00034884,2]
[312837921,1706322641162,-6952.25,0.00034884,2]
[312837922,1706322641172,-136678.13761875,0.00034896,2]
[312837923,1706322641301,-10202.84952288,0.00034896,2]
[312838210,1706323417961,200.0,0.00022331,7]
[312838213,1706323718291,200.0,0.00022308,7]
[312838226,1706323832626,-1697.2441966,0.0002027,2]
[312838229,1706323832635,-928.74622268,0.00020271,2]
[312838232,1706323832645,-679.3029243,0.00020272,2]
[312838236,1706323832655,-5212.65916057,0.00020273,2]
[312838238,1706323832665,-154.98450155,0.00020273,2]
[312838240,1706323832675,-154.98450155,0.00020273,2]
[312838242,1706323832684,-1583.7528565,0.00020274,2]
[312838244,1706323832693,-2136.43240171,0.00020307,2]
[312838246,1706323832702,-400.0,0.00020323,2]
[312838248,1706323832711,-327.61566675,0.00022,2]
[312838250,1706323832720,-426.38170713,0.00022,2]
[312838252,1706323832730,-901.48457273,0.00022308,2]
[312838254,1706323832739,-170.605994,0.00022992,2]
[312838256,1706323832748,-15047.4662705,0.00022993,2]
[312838258,1706323832757,-471.05101678,0.00022998,2]
[312838260,1706323832767,-2105.3133158,0.00022998,2]
[312838261,1706323832776,-2075.77672297,0.00022998,2]
[312838263,1706323832785,-9947.92180076,0.00023,2]
[312838265,1706323832795,-1416.67721386,0.00023,2]
[312838267,1706323832804,-166.666666,0.00023779,2]
[312838268,1706323832813,-166.666666,0.00024394,2]
[312838269,1706323832822,-280.0,0.00024539,7]
[312838270,1706323832831,-4727.98807036,0.00025,2]
[312838271,1706323832840,-851.06760342,0.00025,2]
[312838272,1706323832849,-166.666666,0.00025009,2]
[312838273,1706323832858,-166.666666,0.00025623,2]
[312838274,1706323832866,-290.6944281,0.00027,2]
[312838275,1706323832875,-1806.16,0.00027911,3]
[312838276,1706323832884,-3444.23,0.00027911,3]
[312838277,1706323832893,-1344.79666716,0.00027911,3]
[312838289,1706323838665,-166.666666,0.00021918,2]
[312838291,1706323838675,-166.666666,0.00022431,2]
[312838293,1706323838684,-166.666666,0.00022944,2]
[312838295,1706323838693,-166.666666,0.00023456,2]
[312838297,1706323838702,-166.666666,0.00023969,2]
[312838300,1706323838712,-1525.39333284,0.00027911,3]
[312838301,1706323838721,-2391.82,0.00027911,3]
[312838303,1706323838730,-527.01508147,0.0002792,2]
[312838305,1706323838739,-21765.80175956,0.00027921,2]
[312838307,1706323838748,-195.57103754,0.0003,2]
[312838309,1706323838757,-154.98450155,0.0003,4]
[312838311,1706323838766,-556.2457431,0.00030026,4]
[312838313,1706323838775,-167.427516,0.00030137,2]
[312838315,1706323838784,-158.589,0.00030137,2]
[312838317,1706323838792,-174.73713902,0.00030925,2]
[312838319,1706323838802,-2060.45598383,0.00030979,2]
[312838321,1706323838811,-162.2234434,0.00030979,4]
[312838323,1706323838821,-529.28526222,0.00031,4]
[312838325,1706323838830,-2586.40565565,0.00031025,2]
[312838327,1706323838838,-5000.0,0.00031025,7]
[312838329,1706323838847,-80077.74624058,0.00031025,5]
[312838331,1706323838857,-5000.0,0.00031025,7]
[312838333,1706323838865,-17746.74691947,0.00031025,3]
[312838335,1706323838874,-5000.0,0.00031025,7]
[312838337,1706323838883,-50000.0,0.00031025,4]
[312838339,1706323838892,-50000.0,0.00031025,4]
[312838341,1706323838900,-97096.3792111,0.00031025,4]
[312838343,1706323838909,-167.427516,0.00031115,2]
[312838344,1706323838918,-155.02324865,0.00031403,4]
[312838346,1706323838927,-168.91958893,0.00031403,2]
[312838348,1706323838936,-174.73713898,0.00031869,2]
[312838350,1706323838945,-167.427516,0.00032094,2]
[312838352,1706323838954,-150.0,0.00032141,2]
[312838354,1706323838963,-150.96980604,0.00032386,2]
[312838356,1706323838972,-174.73713898,0.00032813,2]
[312838358,1706323838981,-158.589,0.00032877,2]
[312838360,1706323838991,-277.23333009,0.00033,2]
[312838362,1706323839000,-151.0,0.00033,2]
[312838364,1706323839009,-167.427516,0.00033072,2]
[312838366,1706323839019,-423.96798111,0.00033147,5]
[312838368,1706323839028,-200.0,0.000333,4]
[312838370,1706323839038,-233.496814,0.000334,6]
[312838372,1706323839047,-245.548314,0.000334,6]
[312838374,1706323839056,-174.73713898,0.00033756,2]
[312838376,1706323839065,-500.0,0.00034,120]
[312838378,1706323839074,-302.74,0.00034,120]
[312838380,1706323839083,-2072.0,0.00034,10]
[312838382,1706323839092,-519.58,0.00034,120]
[312838384,1706323839101,-378.78,0.00034,120]
[312838386,1706323839110,-500.0,0.00034,120]
[312838388,1706323839120,-500.0,0.00034,120]
[312838390,1706323839129,-500.0,0.00034,120]
[312838392,1706323839139,-500.0,0.00034,120]
[312838394,1706323839148,-500.0,0.00034,120]
[312838396,1706323839157,-279.5,0.00034,120]
[312838398,1706323839166,-167.427516,0.00034051,2]
[312838400,1706323839176,-620.00007938,0.00034163,2]
[312838402,1706323839185,-151.0,0.00034521,2]
[312838404,1706323839194,-1000.0,0.00034575,2]
[312838406,1706323839203,-500.0,0.00034619,2]
[312838408,1706323839212,-1000.0,0.00034624,2]
[312838410,1706323839222,-1000.0,0.00034664,2]
[312838412,1706323839231,-1000.0,0.00034667,2]
[312838414,1706323839240,-160.0,0.00034674,3]
[312838416,1706323839250,-174.73713898,0.000347,2]
[312838418,1706323839259,-1000.0,0.00034704,2]
[312838420,1706323839268,-467.77945951,0.00034747,2]
[312838422,1706323839277,-3302.31,0.00034795,2]
[312838424,1706323839286,-3302.31,0.00034795,2]
[312838426,1706323839295,-3302.31,0.00034795,2]
[312838428,1706323839305,-3302.31,0.00034795,2]
[312838430,1706323839313,-3302.31,0.00034795,2]
[312838432,1706323839322,-3302.31,0.00034795,2]
[312838434,1706323839333,-3302.31,0.00034795,2]
[312838436,1706323839342,-3302.31,0.00034795,2]
[312838438,1706323839351,-4171.38,0.00034795,2]
[312838440,1706323839360,-4171.39,0.00034795,2]
[312838442,1706323839369,-182.31741376,0.00034795,10]
[312838444,1706323839378,-205.14690629,0.00034795,10]
[312838446,1706323839387,-180.63143464,0.00034795,10]
[312838448,1706323839396,-463.97500348,0.00034795,10]
[312838450,1706323839405,-500.0,0.00034795,10]
[312838452,1706323839414,-234.38710623,0.00034796,3]
[312838454,1706323839423,-276000.0,0.00034796,2]
[312838456,1706323839435,-2000.0,0.000348,2]
[312838458,1706323839443,-4000.0,0.000348,2]
[312838460,1706323839452,-2000.0,0.000348,2]
[312838462,1706323839461,-216.06464981,0.0003481,2]
[312838463,1706323839470,-188.29380735,0.00034826,2]
[312838465,1706323839480,-1275.47963777,0.00034886,2]
[312838467,1706323839489,-1000.0,0.00034886,2]
[312838470,1706323839498,-441.58607357,0.00034892,4]
[312838472,1706323839511,-1499.43887757,0.00034892,4]
[312838474,1706323839520,-2725.34816906,0.00034892,5]
[312838476,1706323839528,-298.82909392,0.00034892,4]
[312838478,1706323839537,-1296.98004999,0.00034892,4]
[312838480,1706323839546,-156.19598509,0.00034892,4]
[312838481,1706323839555,-164.09330822,0.00034893,4]
[312838483,1706323839564,-197.01943793,0.00034894,4]
[312838485,1706323839573,-294.9558227,0.00034894,4]
[312838487,1706323839583,-190.04128751,0.00034894,4]
[312838489,1706323839591,-171.49500219,0.00034894,4]
[312838491,1706323839600,-208.59620441,0.00034894,4]
[312838493,1706323839610,-387.16006083,0.00034894,4]
[312838495,1706323839619,-284.30857523,0.00034894,4]
[312838496,1706323839628,-2328.38764823,0.00034894,4]
[312838634,1706324651039,300.0,0.00029,30]
[312838635,1706324692172,300.0,0.00029,30]
[312838664,1706325031807,-154.98450155,0.00022264,2]
[312838666,1706325031817,-928.74622268,0.00022264,2]
[312838669,1706325031827,-327.61566675,0.00022264,2]
[312838671,1706325031837,-154.98450155,0.00022265,2]
[312838672,1706325031846,-679.3029243,0.00022266,2]
[312838673,1706325031856,-166.666666,0.00022283,2]
[312838674,1706325031866,-165.938905,0.00022449,2]
[312838675,1706325031875,-2105.3133158,0.00022458,2]
[312838676,1706325031885,-155.03875969,0.00022458,2]
[312838677,1706325031895,-81256.3314766,0.00022458,2]
[312838678,1706325031905,-471.05101678,0.00022459,2]
[312838679,1706325031915,-2421.9475176,0.00022461,2]
[312838680,1706325031927,-1632.28361613,0.00022461,2]
[312838694,1706325037840,-20845.76886627,0.00022461,2]
[312838696,1706325037849,-155.02324865,0.00022494,2]
[312838698,1706325037859,-168.91958893,0.000225,2]
[312838700,1706325037868,-166.666666,0.00022891,2]
[312838702,1706325037877,-166.063048,0.00022966,2]
[312838704,1706325037886,-1416.67721386,0.00023,2]
[312838706,1706325037895,-9947.92180076,0.00023,2]
[312838708,1706325037904,-166.666666,0.00023498,2]
[312838709,1706325037913,-166.666666,0.00024106,2]
[312838711,1706325037924,-166.666666,0.00024713,2]
[312838713,1706325037934,-155.29408417,0.00024741,2]
[312838715,1706325037943,-596.88247666,0.00024741,2]
[312838717,1706325037952,-170.2885119,0.00024741,2]
[312838719,1706325037961,-157.44524273,0.00024741,2]
[312838721,1706325037970,-155.38663195,0.00024741,2]
[312838723,1706325037980,-262.01968645,0.00024741,2]
[312838725,1706325037989,-266.7964241,0.00024741,2]
[312838727,1706325037999,-163.3031501,0.00024741,2]
[312838729,1706325038008,-1746.51765485,0.00024741,2]
[312838731,1706325038017,-155.26966922,0.00024741,2]
[312838733,1706325038026,-231.11354731,0.00024741,2]
[312838735,1706325038035,-159.95498318,0.00024742,2]
[312838737,1706325038044,-4034.48784014,0.00024742,2]
[312838739,1706325038053,-21765.80175956,0.00024743,2]
[312838741,1706325038063,-153.32901758,0.000248,2]
[312838743,1706325038072,-270.42632162,0.000249,2]
[312838745,1706325038081,-423.96798111,0.0002496,5]
[312838747,1706325038090,-527.01508147,0.00024993,2]
[312838749,1706325038099,-2458.62754135,0.00024993,2]
[312838751,1706325038108,-162.2234434,0.00024994,2]
[312838752,1706325038117,-2060.45598383,0.00024994,2]
[312838754,1706325038127,-241.42418253,0.00025,2]
[312838755,1706325038136,-210.07383326,0.00025,2]
[312838756,1706325038145,-7416.09290417,0.00025,2]
[312838757,1706325038155,-295.41121794,0.00025,2]
[312838758,1706325038164,-155.29952921,0.00025,2]
[312838759,1706325038174,-155.72592225,0.00025,2]
[312838760,1706325038183,-154.98450155,0.00025,2]
[312838761,1706325038193,-851.06760342,0.00025,2]
[312838762,1706325038201,-4727.98807036,0.00025,2]
[312838763,1706325038211,-687.25433533,0.00025,2]
[312838764,1706325038220,-200.0,0.00025299,7]
[312838765,1706325038229,-166.666666,0.00025321,2]
[312838766,1706325038239,-200.0,0.00025479,2]
[312838767,1706325038248,-153.32901754,0.00025481,2]
[312838768,1706325038257,-4171.00186969,0.00026,2]
[312838769,1706325038266,-153.32901754,0.00026161,2]
[312838770,1706325038275,-270.4263216,0.00026406,2]
[312838771,1706325038284,-632.6988347,0.00026673,2]
[312838772,1706325038293,-153.32901754,0.00026842,2]
[312838773,1706325038302,-290.6944281,0.00027,2]
[312838774,1706325038311,-1901.44944296,0.000275,2]
[312838775,1706325038320,-153.32901754,0.00027522,2]
[312838776,1706325038329,-280.0,0.00027829,15]
[312838777,1706325038338,-200.93387921,0.000279,2]
[312838778,1706325038348,-200.93387921,0.000279,2]
[312838779,1706325038357,-270.4263216,0.00027913,2]
[312838780,1706325038366,-224.84714308,0.00028,7]
[312838781,1706325038375,-556.2457431,0.00028,2]
[312838782,1706325038385,-620.63494173,0.00028007,2]
[312838783,1706325038394,-153.32901754,0.00028203,2]
[312838784,1706325038404,-151.87699175,0.00028653,2]
[312838785,1706325038413,-153.32901754,0.00028883,2]
[312838786,1706325038422,-1933.42796518,0.00029,2]
[312838787,1706325038431,-155.35081964,0.00029,2]
[312838788,1706325038440,-3194.88866007,0.00029,2]
[312838789,1706325038450,-764.75702273,0.00029,2]
[312838790,1706325038459,-600.98971515,0.00029,2]
[312838791,1706325038470,-620.03174709,0.00029407,2]
[312838792,1706325038479,-270.4263216,0.00029419,2]
[312838793,1706325038488,-2963.79714697,0.000295,30]
[312838794,1706325038498,-153.32901754,0.00029564,2]
[312838795,1706325038506,-234.38710624,0.0003,3]
[312838796,1706325038515,-214721.8730404,0.0003,30]
[312838797,1706325038525,-195.57103754,0.0003,2]
[312838798,1706325038534,-108471.54556287,0.0003,4]
[312838799,1706325038543,-154.98450155,0.0003,4]
[312838800,1706325038552,-1515.28020489,0.0003,5]
[312838801,1706325038562,-178.619141,0.00030137,2]
[312838802,1706325038571,-158.601923,0.00030137,2]
[312838803,1706325038580,-153.32901754,0.00030244,2]
[312838804,1706325038589,-150.96980604,0.00030549,30]
[312838805,1706325038598,-391.0,0.00030612,15]
[312838806,1706325038607,-153.32901754,0.00030925,2]
[312838807,1706325038616,-270.4263216,0.00030925,2]
[312838808,1706325038625,-529.28526222,0.00031,4]
[312838809,1706325038634,-500.0,0.00031024,2]
[312838810,1706325038643,-500.0,0.00031024,2]
[312838811,1706325038652,-189.30397204,0.00031024,2]
[312838812,1706325038661,-500.0,0.00031024,2]
[312838813,1706325038672,-221.1444768,0.00031024,2]
[312838814,1706325038681,-500.0,0.00031024,2]
[312838815,1706325038690,-500.0,0.00031024,2]
[312838816,1706325038699,-500.0,0.00031024,2]
[312838817,1706325038708,-500.0,0.00031024,2]
[312838818,1706325038717,-456.21902337,0.00031024,2]
[312838819,1706325038726,-410.10832421,0.00031024,2]
[312838820,1706325038735,-500.0,0.00031024,2]
[312838821,1706325038747,-429.48000706,0.00031024,2]
[312838822,1706325038759,-500.0,0.00031024,2]
[312838823,1706325038768,-640.85672388,0.00031024,2]
[312838824,1706325038777,-500.0,0.00031024,2]
[312838825,1706325038786,-625.68291176,0.00031024,2]
[312838826,1706325038796,-500.0,0.00031024,2]
[312838827,1706325038805,-500.0,0.00031024,2]
[312838828,1706325038814,-500.0,0.00031024,2]
[312838829,1706325038823,-175.77503127,0.00031024,2]
[312838830,1706325038835,-500.0,0.00031024,2]
[312838831,1706325038844,-34208.95517893,0.00031025,2]
[312838832,1706325038854,-5000.0,0.00031025,7]
[312838833,1706325038863,-50000.0,0.00031025,4]
[312838834,1706325038872,-50000.0,0.00031025,4]
[312838835,1706325038882,-50000.0,0.00031025,4]
[312838836,1706325038891,-50000.0,0.00031025,4]
[312838837,1706325038901,-89387.07068458,0.00031025,4]
[312838838,1706325038910,-5000.0,0.00031025,7]
[312838839,1706325038920,-22598.75684293,0.00031025,2]
[312838840,1706325038929,-1209.79424587,0.00031025,2]
[312838841,1706325038938,-178.619141,0.00031115,2]
[312838842,1706325038947,-150.96980604,0.00031172,7]
[312838843,1706325038957,-245.548314,0.000312,4]
[312838844,1706325038966,-151.0,0.00031793,2]
[312838845,1706325038975,-150.96980604,0.00031808,4]
[312838846,1706325038985,-12822.75856338,0.00032,15]
[312838847,1706325038994,-3138.37234854,0.00032,2]
[312838848,1706325039003,-178.619141,0.00032094,2]
[312838849,1706325039013,-409.27812638,0.000322,2]
[312838850,1706325039022,-409.27812638,0.000322,2]
[312838851,1706325039034,-409.27812638,0.000322,2]
[312838852,1706325039043,-409.27812638,0.000322,2]
[312838853,1706325039052,-409.27812638,0.000322,2]
[312838854,1706325039061,-409.27812638,0.000322,2]
[312838855,1706325039070,-409.27812638,0.000322,2]
[312838856,1706325039080,-409.27812638,0.000322,2]
[312838857,1706325039089,-409.27812638,0.000322,2]
[312838858,1706325039098,-409.27812,0.000322,2]
[312838859,1706325039107,-158.601923,0.00032329,2]
[312838860,1706325039116,-150.96980604,0.00032458,2]
[312838861,1706325039125,-1313.44962079,0.00033,2]
[312838862,1706325039134,-701.02378914,0.00033,10]
[312838863,1706325039144,-277.23333009,0.00033,2]
[312838864,1706325039154,-300.0,0.00033,4]
[312838865,1706325039164,-178.619141,0.00033072,2]
[312838866,1706325039173,-233.496814,0.000334,6]
[312838867,1706325039183,-200.0,0.000334,4]
[312838868,1706325039192,-151.0,0.00033588,2]
[312838869,1706325039201,-200.0,0.00033673,15]
[312838870,1706325039210,-348.0,0.00033673,15]
[312838871,1706325039219,-165.938905,0.00033673,2]
[312838872,1706325039230,-2500.0,0.00034,2]
[312838873,1706325039239,-500.0,0.00034,120]
[312838874,1706325039248,-279.5,0.00034,120]
[312838875,1706325039335,-398.36,0.00034,120]
[312838876,1706325039345,-500.0,0.00034,120]
[312838877,1706325039354,-500.0,0.00034,120]
[312838878,1706325039363,-500.0,0.00034,120]
[312838879,1706325039372,-500.0,0.00034,120]
[312838880,1706325039381,-500.0,0.00034,120]
[312838881,1706325039390,-302.74,0.00034,120]
[312838882,1706325039399,-500.0,0.00034,120]
[312838883,1706325039410,-156.41873165,0.00034,2]
[312838884,1706325039420,-178.619141,0.00034051,2]
[312838885,1706325039429,-620.00158378,0.00034161,2]
[312838886,1706325039438,-158.601923,0.00034521,2]
[312838887,1706325039449,-1000.0,0.00034636,2]
[312838888,1706325039459,-1000.0,0.0003464,2]
[312838889,1706325039468,-1000.0,0.000347,2]
[312838890,1706325039477,-467.77945951,0.00034733,2]
[312838891,1706325039486,-1000.0,0.0003477,2]
[312838892,1706325039495,-427.145704,0.00034784,2]
[312838893,1706325039504,-155.50428572,0.00034785,4]
[312838894,1706325039514,-772.68003239,0.00034785,4]
[312838895,1706325039523,-2081.66586739,0.00034785,4]
[312838896,1706325039533,-151.0,0.00034785,2]
[312838897,1706325039542,-151.0,0.00034785,2]
[312838898,1706325039551,-478.027102,0.00034785,2]
[312838899,1706325039561,-478.027102,0.00034785,2]
[312838900,1706325039570,-666.206963,0.00034785,2]
[312838901,1706325039581,-666.206963,0.00034785,2]
[312838902,1706325039591,-151.0,0.00034785,2]
[312838903,1706325039601,-151.0,0.00034785,2]
[312838904,1706325039610,-6676.118608,0.00034785,2]
[312838905,1706325039619,-6676.118608,0.00034785,2]
[312838906,1706325039629,-151.0,0.00034785,2]
[312838907,1706325039638,-151.0,0.00034785,2]
[312838908,1706325039647,-151.0,0.00034785,2]
[312838909,1706325039656,-1000.0,0.00034814,2]
[312838910,1706325039666,-500.0,0.00034867,2]
[312838911,1706325039676,-1275.47963777,0.00034884,2]
[312838912,1706325039686,-1000.0,0.00034889,2]
[312838913,1706325039695,-1296.98004999,0.0003489,4]
[312838914,1706325039704,-2725.34816906,0.0003489,5]
[312838915,1706325039713,-3476.12,0.0003489,2]
[312838916,1706325039722,-3476.12,0.0003489,2]
[312838917,1706325039731,-3476.12,0.0003489,2]
[312838918,1706325039740,-3476.12,0.0003489,2]
[312838919,1706325039750,-3476.12,0.0003489,2]
[312838920,1706325039765,-3476.12,0.0003489,2]
[312838921,1706325039775,-298.82909392,0.00034891,4]
[312838922,1706325039784,-164.09330822,0.00034891,4]
[312838923,1706325039793,-19762.2221907,0.00034891,4]
[312838924,1706325039803,-151.0,0.00034891,2]
[312838925,1706325039812,-4504.67123504,0.00034892,4]
[312838926,1706325039821,-284.30857523,0.00034892,4]
[312838927,1706325039831,-294.9558227,0.00034892,4]
[312838928,1706325039841,-197.01943793,0.00034892,4]
[312838929,1706325039851,-208.59620441,0.00034892,4]
[312838930,1706325039861,-171.49500219,0.00034892,4]
[312838931,1706325039870,-190.04128751,0.00034892,4]
[312838932,1706325039879,-387.16006083,0.00034892,4]
[312838933,1706325039888,-1595.60431822,0.00034893,4]
[312838934,1706325039897,-155.11769562,0.00034893,4]
[312838936,1706325039906,-1202.78813956,0.00034894,4]
[312838938,1706325039915,-689.94961717,0.00034894,4]
[312838939,1706325039925,-155.46554963,0.00034894,4]
[312838940,1706325039934,-273.75067298,0.00034894,4]
[312838941,1706325039943,-1852.11718472,0.00034894,2]
[312838942,1706325039952,-236.74255742,0.00034894,7]
[312838943,1706325039962,-155.07866455,0.00034894,4]
[312838944,1706325039971,-500.0,0.00034898,2]
[312838946,1706325039980,-500.0,0.00034898,2]
[312838947,1706325039990,-446.57334423,0.00034899,7]
[312838948,1706325039999,-500.0,0.00034899,10]
[312838949,1706325040009,-311.78878247,0.00034899,10]
[312838950,1706325040018,-308.32443943,0.00034899,10]
[312838951,1706325040028,-500.0,0.00034899,10]
[312838952,1706325040037,-500.0,0.00034899,10]
[312838953,1706325040047,-500.0,0.00034899,10]
[312838954,1706325040056,-500.0,0.00034899,10]
[312838956,1706325040065,-500.0,0.00034899,10]
[312838958,1706325040074,-500.0,0.00034899,10]
[312838959,1706325040083,-500.0,0.00034899,10]
[312838960,1706325040093,-500.0,0.00034899,10]
[312838961,1706325040102,-500.0,0.00034899,10]
[312838962,1706325040112,-500.0,0.00034899,10]
[312838963,1706325040122,-500.0,0.00034899,10]
[312838964,1706325040133,-500.0,0.00034899,10]
[312838965,1706325040145,-500.0,0.00034899,10]
[312838966,1706325040155,-384.94949979,0.00034899,10]
[312838967,1706325040166,-500.0,0.00034899,10]
[312838968,1706325040176,-500.0,0.00034899,10]
[312838969,1706325040186,-311.4035226,0.00034899,10]
[312838970,1706325040197,-419.81267107,0.00034899,10]
[312838971,1706325040206,-500.0,0.00034899,10]
[312838972,1706325040216,-500.0,0.00034899,10]
[312838973,1706325040225,-500.0,0.00034899,10]
[312838974,1706325040235,-500.0,0.00034899,10]
[312838976,1706325040244,-500.0,0.00034899,10]
[312838977,1706325040254,-500.0,0.00034899,10]
[312838978,1706325040263,-500.0,0.00034899,10]
[312838979,1706325040272,-500.0,0.00034899,10]
[312838980,1706325040281,-500.0,0.00034899,10]
[312838981,1706325040291,-500.0,0.00034899,10]
[312838982,1706325040300,-500.0,0.00034899,10]
[312838983,1706325040310,-500.0,0.00034899,10]
[312838984,1706325040319,-31069.24167908,0.000349,2]
[312838985,1706325040333,-10202.84952288,0.000349,2]
[312839007,1706325370074,3093.0,0.000232,5]
[312839042,1706325794761,301.0,0.00029,30]
[312839123,1706326232030,-617.20703081,0.00019997,2]
[312839124,1706326232040,-928.74622268,0.00019998,2]